lending/lending_fUSD_20240401
["ID","MTS","AMOUNT","RATE_DAILY","PERIOD"]
[321238649,1712009445006,-500.0,0.00055068,120]
[321238650,1712009445015,-500.0,0.00055068,120]
[321238651,1712009445025,-500.0,0.00055068,120]
[321238652,1712009445034,-5307.53,0.00055068,120]
[321238653,1712009445043,-500.0,0.00055068,120]
[321238654,1712009445053,-500.0,0.00055068,120]
[321238655,1712009445062,-500.0,0.00055068,120]
[321238656,1712009445072,-509.91,0.00055068,120]
[321238657,1712009445081,-674.12,0.00055068,120]
[321238658,1712009445091,-500.0,0.00055068,120]
[321238659,1712009445101,-7130.05,0.00055068,120]
[321238660,1712009445110,-500.0,0.00055068,120]
[321238661,1712009445118,-784.39,0.00055068,120]
[321238662,1712009445128,-500.0,0.00055068,120]
[321238663,1712009445137,-500.0,0.00055068,120]
[321238664,1712009445146,-500.0,0.00055068,120]
[321238665,1712009445155,-500.0,0.00055068,120]
[321238666,1712009445165,-500.0,0.00055068,120]
[321238667,1712009445174,-583.87,0.00055068,120]
[321238668,1712009445183,-683.13,0.00055068,120]
[321238669,1712009445192,-500.0,0.00055068,120]
[321238670,1712009445202,-500.0,0.00055068,120]
[321238671,1712009445211,-8568.4,0.00055068,120]
[321238672,1712009445220,-500.0,0.00055068,120]
[321238673,1712009445230,-500.0,0.00055068,120]
[321238674,1712009445239,-500.0,0.00055068,120]
[321238675,1712009445249,-500.0,0.00055068,120]
[321238676,1712009445259,-828.92,0.00055068,120]
[321238677,1712009445269,-500.0,0.00055068,120]
[321238678,1712009445278,-500.0,0.00055068,120]
[321238679,1712009445287,-472.36,0.00055068,120]
[321238680,1712009445297,-718.19,0.00055068,120]
[321238681,1712009445306,-500.0,0.00055068,120]
[321238682,1712009445316,-500.0,0.00055068,120]
[321238683,1712009445326,-524.83,0.00055068,120]
[321238684,1712009445335,-500.0,0.00055068,120]
[321238685,1712009445344,-500.0,0.00055068,120]
[321238686,1712009445355,-644.16,0.00055068,21]
[321238687,1712009445364,-1373.74,0.00055068,120]
[321238688,1712009445373,-500.0,0.00055068,120]
[321238689,1712009445383,-526.38,0.00055068,120]
[321238690,1712009445392,-594.12,0.00055068,120]
[321238691,1712009445401,-500.0,0.00055068,120]
[321238692,1712009445411,-610.54,0.00055068,120]
[321238693,1712009445420,-500.0,0.00055068,120]
[321238694,1712009445430,-595.4,0.00055068,120]
[321238695,1712009445439,-437.4,0.00055068,120]
[321238696,1712009445448,-500.0,0.00055068,120]
[321238697,1712009445457,-1259.72,0.00055068,120]
[321238698,1712009445466,-500.0,0.00055068,120]
[321238699,1712009445475,-500.0,0.00055068,120]
[321238700,1712009445484,-674.09,0.00055068,120]
[321238701,1712009445493,-500.0,0.00055068,120]
[321238702,1712009445503,-456.88,0.00055068,120]
[321238703,1712009445512,-500.0,0.00055068,120]
[321238704,1712009445521,-500.0,0.00055068,120]
[321238705,1712009445530,-500.0,0.00055068,120]
[321238706,1712009445539,-1198.7,0.00055068,120]
[321238707,1712009445549,-500.0,0.00055068,120]
[321238708,1712009445558,-521.23,0.00055068,120]
[321238709,1712009445567,-662.7,0.00055068,120]
[321238710,1712009445577,-288.34,0.00055068,120]
[321238711,1712009445586,-601.98,0.00055068,120]
[321238712,1712009445595,-521.91,0.00055068,120]
[321238713,1712009445605,-500.0,0.00055068,120]
[321238714,1712009445615,-763.21,0.00055068,120]
[321238715,1712009445624,-500.0,0.00055068,120]
[321238716,1712009445633,-575.65,0.00055068,120]
[321238717,1712009445642,-500.0,0.00055068,120]
[321238718,1712009445652,-500.0,0.00055068,120]
[321238719,1712009445661,-500.0,0.00055068,120]
[321238720,1712009445670,-541.69,0.00055068,120]
[321238721,1712009445678,-2967.44,0.00055068,120]
[321238722,1712009445687,-502.8,0.00055068,120]
[321238723,1712009445695,-500.0,0.00055068,120]
[321238724,1712009445706,-500.0,0.00055068,120]
[321238725,1712009445716,-500.0,0.00055068,120]
[321238726,1712009445725,-500.0,0.00055068,120]
[321238727,1712009445734,-500.0,0.00055068,120]
[321238728,1712009445745,-500.0,0.00055068,120]
[321238729,1712009445754,-1260.46,0.00055068,120]
[321238730,1712009445764,-1749.5,0.00055068,120]
[321238731,1712009445773,-500.0,0.00055068,120]
[321238732,1712009445783,-540.76,0.00055068,120]
[321238733,1712009445793,-500.0,0.00055068,120]
[321238734,1712009445802,-1186.18,0.00055068,120]
[321238735,1712009445812,-910.97,0.00055068,120]
[321238736,1712009445824,-192.46,0.00055068,120]
[321238737,1712009445834,-500.0,0.00055068,120]
[321238738,1712009445844,-500.0,0.00055068,120]
[321238739,1712009445854,-654.57,0.00055068,120]
[321238740,1712009445863,-202.5,0.00055068,120]
[321238741,1712009445872,-1734.15,0.00055068,120]
[321238742,1712009445881,-485.94,0.00055068,120]
[321238743,1712009445891,-932.52,0.00055068,120]
[321238744,1712009445900,-500.0,0.00055068,120]
[321238745,1712009445910,-500.0,0.00055068,120]
[321238746,1712009445918,-500.0,0.00055068,120]
[321238747,1712009445927,-622.78,0.00055068,120]
[321238748,1712009445937,-500.0,0.00055068,120]
[321238749,1712009445946,-534.95,0.00055068,120]
[321238750,1712009445957,-1828.04,0.00055068,120]
[321238751,1712009445967,-500.0,0.00055068,120]
[321238752,1712009445976,-500.0,0.00055068,120]
[321238753,1712009445985,-500.0,0.00055068,120]
[321238754,1712009445994,-431.96,0.00055068,120]
[321238755,1712009446004,-644.85,0.00055068,120]
[321238756,1712009446014,-500.0,0.00055068,120]
[321238757,1712009446023,-627.7,0.00055068,120]
[321238758,1712009446033,-500.0,0.00055068,120]
[321238759,1712009446042,-532.88,0.00055068,120]
[321238760,1712009446052,-500.0,0.00055068,120]
[321238761,1712009446061,-500.0,0.00055068,120]
[321238762,1712009446070,-500.0,0.00055068,120]
[321238763,1712009446080,-500.0,0.00055068,7]
[321238764,1712009446089,-500.0,0.00055068,120]
[321238765,1712009446098,-164.06,0.00055068,120]
[321238766,1712009446107,-500.0,0.00055068,120]
[321238767,1712009446116,-500.0,0.00055068,120]
[321238768,1712009446126,-500.0,0.00055068,120]
[321238769,1712009446135,-500.0,0.00055068,120]
[321238770,1712009446144,-1511.02,0.00055068,120]
[321238771,1712009446153,-500.0,0.00055068,120]
[321238772,1712009446163,-500.0,0.00055068,120]
[321238773,1712009446172,-500.0,0.00055068,120]
[321238774,1712009446181,-500.0,0.00055068,120]
[321238775,1712009446190,-500.0,0.00055068,120]
[321238776,1712009446199,-500.0,0.00055068,120]
[321238777,1712009446209,-500.0,0.00055068,120]
[321238778,1712009446217,-539.45,0.00055068,120]
[321238779,1712009446227,-500.0,0.00055068,120]
[321238780,1712009446236,-500.0,0.00055068,120]
[321238781,1712009446350,-1184.28,0.00055068,120]
[321238782,1712009446361,-500.0,0.00055068,120]
[321238783,1712009446370,-225.34,0.00055068,120]
[321238784,1712009446379,-500.0,0.00055068,120]
[321238785,1712009446389,-545.44,0.00055068,120]
[321238786,1712009446399,-500.0,0.00055068,120]
[321238787,1712009446409,-500.0,0.00055068,120]
[321238788,1712009446418,-500.0,0.00055068,120]
[321238789,1712009446428,-500.0,0.00055068,120]
[321238790,1712009446437,-500.0,0.00055068,120]
[321238791,1712009446446,-562.68,0.00055068,120]
[321238792,1712009446456,-500.0,0.00055068,120]
[321238793,1712009446466,-1000.0,0.00055287,120]
[321238794,1712009446475,-5068.45846466,0.0005534,2]
[321238795,1712009446483,-538.77,0.00055341,120]
[321238796,1712009446492,-500.0,0.00055341,120]
[321238797,1712009446502,-1155.33,0.00055341,120]
[321238798,1712009446511,-1097.78,0.00055341,120]
[321238799,1712009446520,-662.87,0.00055341,120]
[321238800,1712009446529,-543.14,0.00055341,120]
[321238801,1712009446539,-1265.41,0.00055341,120]
[321238802,1712009446548,-500.0,0.00055341,120]
[321238803,1712009446557,-500.0,0.00055341,120]
[321238804,1712009446566,-3000.0,0.00055341,120]
[321238805,1712009446575,-1148.89,0.00055341,120]
[321238806,1712009446585,-500.0,0.00055341,120]
[321238807,1712009446595,-517.77,0.00055341,120]
[321238808,1712009446605,-500.0,0.00055341,120]
[321238809,1712009446615,-500.0,0.00055341,120]
[321238810,1712009446624,-500.0,0.00055341,120]
[321238811,1712009446634,-500.0,0.00055341,120]
[321238812,1712009446643,-546.82,0.00055341,120]
[321238813,1712009446652,-527.78,0.00055341,120]
[321238814,1712009446661,-552.48,0.00055341,120]
[321238815,1712009446670,-500.0,0.00055342,120]
[321238816,1712009446679,-531.6,0.00055342,120]
[321238817,1712009446688,-500.0,0.00055342,120]
[321238818,1712009446697,-500.0,0.00055342,120]
[321238819,1712009446706,-500.0,0.00055342,120]
[321238820,1712009446716,-500.0,0.00055342,120]
[321238821,1712009446731,-500.0,0.00055342,120]
[321238822,1712009446748,-500.0,0.00055342,120]
[321238823,1712009446758,-500.0,0.00055342,120]
[321238824,1712009446767,-500.0,0.00055342,120]
[321238825,1712009446776,-500.0,0.00055342,120]
[321238826,1712009446786,-500.0,0.00055342,120]
[321238827,1712009446795,-500.0,0.00055342,120]
[321238828,1712009446805,-500.0,0.00055342,120]
[321238829,1712009446815,-500.0,0.00055342,120]
[321238830,1712009446825,-500.0,0.00055342,120]
[321238831,1712009446835,-500.0,0.00055342,120]
[321238832,1712009446844,-500.0,0.00055342,120]
[321238833,1712009446854,-500.0,0.00055342,120]
[321238834,1712009446863,-383.7,0.00055342,30]
[321238835,1712009446873,-500.0,0.00055342,120]
[321238836,1712009446882,-500.0,0.00055342,120]
[321238837,1712009446892,-500.0,0.00055342,120]
[321238838,1712009446901,-500.0,0.00055342,120]
[321238839,1712009446910,-500.0,0.00055342,120]
[321238840,1712009446920,-500.0,0.00055342,120]
[321238841,1712009446929,-500.0,0.00055342,120]
[321238842,1712009446938,-500.0,0.00055342,120]
[321238843,1712009446948,-500.0,0.00055342,120]
[321238844,1712009446957,-500.0,0.00055342,120]
[321238845,1712009446967,-500.0,0.00055342,120]
[321238846,1712009446976,-500.0,0.00055342,120]
[321238847,1712009446986,-500.0,0.00055342,120]
[321238848,1712009446995,-500.0,0.00055342,120]
[321238849,1712009447005,-500.0,0.00055342,120]
[321238850,1712009447015,-500.0,0.00055342,120]
[321238851,1712009447024,-500.0,0.00055342,120]
[321238852,1712009447034,-500.0,0.00055342,120]
[321238853,1712009447043,-500.0,0.00055342,120]
[321238854,1712009447053,-500.0,0.00055342,30]
[321238855,1712009447063,-500.0,0.00055342,120]
[321238856,1712009447072,-500.0,0.00055342,120]
[321238857,1712009447081,-500.0,0.00055342,120]
[321238858,1712009447090,-500.0,0.00055342,120]
[321238859,1712009447099,-500.0,0.00055342,120]
[321238860,1712009447110,-500.0,0.00055342,120]
[321238861,1712009447120,-500.0,0.00055342,120]
[321238862,1712009447129,-500.0,0.00055342,120]
[321238863,1712009447138,-500.0,0.00055342,120]
[321238864,1712009447148,-888.0,0.00055342,120]
[321238865,1712009447157,-500.0,0.00055342,120]
[321238866,1712009447167,-500.0,0.00055342,120]
[321238867,1712009447181,-500.0,0.00055342,120]
[321238868,1712009447190,-500.0,0.00055342,120]
[321238869,1712009447200,-500.0,0.00055342,120]
[321238870,1712009447210,-500.0,0.00055342,120]
[321238871,1712009447220,-551.71,0.00055342,120]
[321238872,1712009447230,-500.0,0.00055342,120]
[321238873,1712009447240,-500.0,0.00055342,120]
[321238874,1712009447250,-500.0,0.00055342,120]
[321238875,1712009447260,-500.0,0.00055342,120]
[321238876,1712009447269,-500.0,0.00055342,120]
[321238877,1712009447279,-500.0,0.00055342,30]
[321238878,1712009447288,-500.0,0.00055342,120]
[321238879,1712009447298,-500.0,0.00055342,120]
[321238880,1712009447308,-500.0,0.00055342,120]
[321238881,1712009447317,-500.0,0.00055342,120]
[321238882,1712009447328,-500.0,0.00055342,120]
[321238883,1712009447337,-500.0,0.00055342,120]
[321238884,1712009447347,-500.0,0.00055342,120]
[321238885,1712009447357,-500.0,0.00055342,120]
[321238886,1712009447366,-500.0,0.00055342,120]
[321238887,1712009447376,-500.0,0.00055342,120]
[321238888,1712009447385,-500.0,0.00055342,120]
[321238889,1712009447395,-500.0,0.00055342,120]
[321238890,1712009447405,-500.0,0.00055342,120]
[321238891,1712009447415,-500.0,0.00055342,120]
[321238892,1712009447425,-500.0,0.00055342,120]
[321238893,1712009447434,-500.0,0.00055342,120]
[321238894,1712009447448,-500.0,0.00055342,120]
[321238895,1712009447458,-500.0,0.00055342,120]
[321238896,1712009447468,-500.0,0.00055342,120]
[321238897,1712009447478,-150.0,0.00055342,120]
[321238898,1712009447488,-500.0,0.00055342,120]
[321238899,1712009447497,-500.0,0.00055342,120]
[321238900,1712009447507,-500.0,0.00055342,120]
[321238901,1712009447516,-500.0,0.00055342,120]
[321238902,1712009447526,-500.0,0.00055342,120]
[321238903,1712009447535,-500.0,0.00055342,120]
[321238904,1712009447545,-500.0,0.00055342,120]
[321238905,1712009447555,-500.0,0.00055342,120]
[321238906,1712009447564,-500.0,0.00055342,120]
[321238907,1712009447574,-500.0,0.00055342,120]
[321238908,1712009447584,-500.0,0.00055342,120]
[321238909,1712009447594,-500.0,0.00055342,120]
[321238910,1712009447605,-500.0,0.00055342,120]
[321238911,1712009447614,-500.0,0.00055342,120]
[321238912,1712009447624,-500.0,0.00055342,120]
[321238913,1712009447633,-500.0,0.00055342,120]
[321238914,1712009447642,-500.0,0.00055342,120]
[321238915,1712009447652,-500.0,0.00055342,120]
[321238916,1712009447661,-500.0,0.00055342,120]
[321238917,1712009447672,-500.0,0.00055342,120]
[321238918,1712009447682,-500.0,0.00055342,120]
[321238919,1712009447691,-500.0,0.00055342,120]
[321238920,1712009447700,-500.0,0.00055342,120]
[321238921,1712009447710,-500.0,0.00055342,120]
[321238922,1712009447723,-500.0,0.00055342,120]
[321238923,1712009447733,-500.0,0.00055342,120]
[321238924,1712009447745,-500.0,0.00055342,120]
[321238925,1712009447755,-500.0,0.00055342,120]
[321238926,1712009447765,-282.96,0.00055342,120]
[321238927,1712009447775,-500.0,0.00055342,120]
[321238928,1712009447784,-500.0,0.00055342,120]
[321238929,1712009447794,-495.98,0.00055342,120]
[321238930,1712009447803,-500.0,0.00055342,120]
[321238931,1712009447813,-500.0,0.00055342,120]
[321238932,1712009447823,-500.0,0.00055342,120]
[321238933,1712009447832,-500.0,0.00055342,120]
[321238934,1712009447842,-500.0,0.00055342,120]
[321238935,1712009447852,-500.0,0.00055342,120]
[321238936,1712009447861,-500.0,0.00055342,120]
[321238937,1712009447871,-500.0,0.00055342,120]
[321238938,1712009447881,-500.0,0.00055342,120]
[321238939,1712009447890,-500.0,0.00055342,120]
[321238940,1712009447900,-500.0,0.00055342,120]
[321238941,1712009447910,-500.0,0.00055342,7]
[321238942,1712009447919,-500.0,0.00055342,120]
[321238943,1712009447928,-500.0,0.00055342,120]
[321238944,1712009447938,-500.0,0.00055342,120]
[321238945,1712009447948,-500.0,0.00055342,120]
[321238946,1712009447958,-500.0,0.00055342,120]
[321238947,1712009447967,-185.26,0.00055342,120]
[321238948,1712009447977,-500.0,0.00055342,120]
[321238949,1712009447988,-500.0,0.00055342,120]
[321238950,1712009447998,-500.0,0.00055342,120]
[321238951,1712009448008,-500.0,0.00055342,120]
[321238952,1712009448018,-500.0,0.00055342,120]
[321238953,1712009448027,-500.0,0.00055342,120]
[321238954,1712009448037,-500.0,0.00055342,120]
[321238955,1712009448047,-500.0,0.00055342,120]
[321238956,1712009448056,-500.0,0.00055342,120]
[321238957,1712009448066,-500.0,0.00055342,120]
[321238958,1712009448076,-500.0,0.00055342,120]
[321238959,1712009448086,-500.0,0.00055342,120]
[321238960,1712009448096,-500.0,0.00055342,120]
[321238961,1712009448111,-500.0,0.00055342,120]
[321238962,1712009448120,-500.0,0.00055342,120]
[321238963,1712009448129,-500.0,0.00055342,120]
[321238964,1712009448138,-500.0,0.00055342,120]
[321238965,1712009448148,-567.46,0.00055342,120]
[321238966,1712009448157,-500.0,0.00055342,120]
[321238967,1712009448167,-2940.4,0.00055342,120]
[321238968,1712009448178,-500.0,0.00055342,120]
[321238969,1712009448187,-500.0,0.00055342,120]
[321238970,1712009448197,-500.0,0.00055342,120]
[321238971,1712009448206,-9617.67,0.00055342,120]
[321238972,1712009448215,-500.0,0.00055342,120]
[321238973,1712009448225,-500.0,0.00055342,120]
[321238974,1712009448235,-583.12,0.00055342,120]
[321238975,1712009448245,-500.0,0.00055342,120]
[321238976,1712009448254,-3963.56,0.00055342,120]
[321238977,1712009448263,-500.0,0.00055342,120]
[321238978,1712009448273,-1592.94,0.00055342,120]
[321238979,1712009448282,-500.0,0.00055342,120]
[321238980,1712009448291,-1171.94,0.00055342,120]
[321238981,1712009448438,-500.0,0.00055342,120]
[321238982,1712009448448,-500.0,0.00055342,120]
[321238983,1712009448458,-519.04,0.00055342,120]
[321238984,1712009448467,-500.0,0.00055342,120]
[321238985,1712009448476,-500.0,0.00055342,120]
[321238986,1712009448493,-500.0,0.00055342,120]
[321238987,1712009448508,-500.0,0.00055342,120]
[321238988,1712009448518,-500.0,0.00055342,120]
[321238989,1712009448528,-649.04,0.00055342,120]
[321238990,1712009448538,-500.0,0.00055342,120]
[321238991,1712009448547,-735.74,0.00055342,120]
[321238992,1712009448557,-500.0,0.00055342,120]
[321238993,1712009448567,-2396.91,0.00055342,120]
[321238994,1712009448577,-710.69,0.00055342,120]
[321238995,1712009448586,-500.0,0.00055342,120]
[321238996,1712009448596,-500.0,0.00055342,120]
[321238997,1712009448606,-500.0,0.00055342,120]
[321238998,1712009448615,-500.0,0.00055342,120]
[321238999,1712009448625,-5307.53,0.00055342,120]
[321239000,1712009448635,-500.0,0.00055342,120]
[321239001,1712009448645,-500.0,0.00055342,120]
[321239002,1712009448655,-500.0,0.00055342,120]
[321239003,1712009448666,-509.91,0.00055342,120]
[321239004,1712009448676,-674.12,0.00055342,120]
[321239005,1712009448686,-500.0,0.00055342,120]
[321239006,1712009448695,-7130.05,0.00055342,120]
[321239007,1712009448705,-500.0,0.00055342,120]
[321239008,1712009448715,-784.39,0.00055342,120]
[321239009,1712009448724,-500.0,0.00055342,120]
[321239010,1712009448733,-500.0,0.00055342,120]
[321239011,1712009448743,-500.0,0.00055342,120]
[321239012,1712009448755,-500.0,0.00055342,120]
[321239013,1712009448765,-500.0,0.00055342,120]
[321239014,1712009448774,-583.87,0.00055342,120]
[321239015,1712009448785,-683.13,0.00055342,120]
[321239016,1712009448795,-500.0,0.00055342,120]
[321239017,1712009448805,-500.0,0.00055342,120]
[321239018,1712009448815,-8568.4,0.00055342,120]
[321239019,1712009448826,-500.0,0.00055342,120]
[321239020,1712009448835,-500.0,0.00055342,120]
[321239021,1712009448845,-500.0,0.00055342,120]
[321239022,1712009448854,-500.0,0.00055342,120]
[321239023,1712009448864,-828.92,0.00055342,120]
[321239024,1712009448874,-500.0,0.00055342,120]
[321239025,1712009448883,-162.14,0.00055342,120]
[321239026,1712009448892,-718.19,0.00055342,120]
[321239027,1712009448902,-500.0,0.00055342,120]
[321239028,1712009448911,-500.0,0.00055342,120]
[321239029,1712009448921,-524.83,0.00055342,120]
[321239030,1712009448930,-500.0,0.00055342,120]
[321239031,1712009448942,-500.0,0.00055342,120]
[321239032,1712009448951,-644.16,0.00055342,21]
[321239033,1712009448961,-1373.74,0.00055342,120]
[321239034,1712009448971,-500.0,0.00055342,120]
[321239035,1712009448981,-526.38,0.00055342,120]
[321239036,1712009448990,-594.12,0.00055342,120]
[321239037,1712009449000,-500.0,0.00055342,120]
[321239038,1712009449009,-610.54,0.00055342,120]
[321239039,1712009449018,-500.0,0.00055342,120]
[321239040,1712009449028,-595.4,0.00055342,120]
[321239041,1712009449037,-500.0,0.00055342,120]
[321239042,1712009449047,-1259.72,0.00055342,120]
[321239043,1712009449056,-500.0,0.00055342,120]
[321239044,1712009449066,-500.0,0.00055342,120]
[321239045,1712009449075,-674.09,0.00055342,120]
[321239046,1712009449085,-500.0,0.00055342,120]
[321239047,1712009449095,-500.0,0.00055342,120]
[321239048,1712009449104,-500.0,0.00055342,120]
[321239049,1712009449113,-500.0,0.00055342,120]
[321239050,1712009449122,-1198.7,0.00055342,120]
[321239051,1712009449131,-500.0,0.00055342,120]
[321239052,1712009449141,-521.23,0.00055342,120]
[321239053,1712009449151,-662.7,0.00055342,120]
[321239054,1712009449161,-601.98,0.00055342,120]
[321239055,1712009449170,-521.91,0.00055342,120]
[321239056,1712009449180,-500.0,0.00055342,120]
[321239057,1712009449189,-763.21,0.00055342,120]
[321239058,1712009449200,-500.0,0.00055342,120]
[321239059,1712009449209,-575.65,0.00055342,120]
[321239060,1712009449220,-554.08,0.00055342,120]
[321239061,1712009449229,-500.0,0.00055342,120]
[321239062,1712009449239,-500.0,0.00055342,120]
[321239063,1712009449248,-541.69,0.00055342,120]
[321239064,1712009449258,-2967.44,0.00055342,120]
[321239065,1712009449268,-514.52,0.00055342,120]
[321239066,1712009449277,-500.0,0.00055342,120]
[321239067,1712009449287,-424.78,0.00055342,120]
[321239068,1712009449296,-500.0,0.00055342,120]
[321239069,1712009449306,-253.88,0.00055342,120]
[321239070,1712009449315,-500.0,0.00055342,120]
[321239071,1712009449324,-1260.46,0.00055342,120]
[321239072,1712009449333,-500.0,0.00055342,120]
[321239073,1712009449342,-1749.5,0.00055342,120]
[321239074,1712009449352,-540.76,0.00055342,120]
[321239075,1712009449362,-500.0,0.00055342,120]
[321239076,1712009449372,-1186.18,0.00055342,120]
[321239077,1712009449381,-910.97,0.00055342,120]
[321239078,1712009449390,-500.0,0.00055342,120]
[321239079,1712009449400,-500.0,0.00055342,120]
[321239080,1712009449410,-654.57,0.00055342,120]
[321239081,1712009449419,-1734.15,0.00055342,120]
[321239082,1712009449428,-932.52,0.00055342,120]
[321239083,1712009449438,-500.0,0.00055342,120]
[321239084,1712009449448,-587.12,0.00055342,120]
[321239085,1712009449458,-500.0,0.00055342,120]
[321239086,1712009449467,-622.78,0.00055342,120]
[321239087,1712009449478,-500.0,0.00055342,120]
[321239088,1712009449488,-534.95,0.00055342,120]
[321239089,1712009449497,-1828.04,0.00055342,120]
[321239090,1712009449506,-500.0,0.00055342,120]
[321239091,1712009449515,-500.0,0.00055342,120]
[321239092,1712009449525,-625.74,0.00055342,120]
[321239093,1712009449534,-644.85,0.00055342,120]
[321239094,1712009449543,-500.0,0.00055342,120]
[321239095,1712009449552,-627.7,0.00055342,120]
[321239096,1712009449561,-500.0,0.00055342,120]
[321239097,1712009449571,-532.88,0.00055342,120]
[321239098,1712009449580,-500.0,0.00055342,120]
[321239099,1712009449589,-306.18,0.00055342,120]
[321239100,1712009449599,-207.34,0.00055342,120]
[321239101,1712009449608,-500.0,0.00055342,7]
[321239102,1712009449617,-500.0,0.00055342,120]
[321239103,1712009449626,-500.0,0.00055342,120]
[321239104,1712009449635,-500.0,0.00055342,120]
[321239105,1712009449645,-500.0,0.00055342,120]
[321239106,1712009449654,-500.0,0.00055342,120]
[321239107,1712009449663,-1511.02,0.00055342,120]
[321239108,1712009449672,-500.0,0.00055342,120]
[321239109,1712009449682,-500.0,0.00055342,120]
[321239110,1712009449691,-500.0,0.00055342,120]
[321239111,1712009449700,-500.0,0.00055342,120]
[321239112,1712009449710,-500.0,0.00055342,120]
[321239113,1712009449719,-500.0,0.00055342,120]
[321239114,1712009449729,-500.0,0.00055342,120]
[321239115,1712009449738,-539.45,0.00055342,120]
[321239116,1712009449749,-500.0,0.00055342,120]
[321239117,1712009449759,-500.0,0.00055342,120]
[321239118,1712009449768,-1184.28,0.00055342,120]
[321239119,1712009449778,-500.0,0.00055342,120]
[321239120,1712009449787,-500.0,0.00055342,120]
[321239121,1712009449797,-545.44,0.00055342,120]
[321239122,1712009449807,-500.0,0.00055342,120]
[321239123,1712009449817,-500.0,0.00055342,120]
[321239124,1712009449827,-170.16,0.00055342,120]
[321239125,1712009449836,-500.0,0.00055342,120]
[321239126,1712009449845,-500.0,0.00055342,120]
[321239127,1712009449854,-562.68,0.00055342,120]
[321239128,1712009449864,-230.86,0.00055415,120]
[321239129,1712009449873,-5283.13851966,0.00055516,33]
[321239130,1712009449882,-903.79,0.00055525,120]
[321239131,1712009449891,-538.77,0.00055615,120]
[321239132,1712009449899,-500.0,0.00055615,120]
[321239133,1712009449908,-1155.33,0.00055615,120]
[321239134,1712009449918,-1097.78,0.00055615,120]
[321239135,1712009449927,-662.87,0.00055615,120]
[321239136,1712009449937,-543.14,0.00055615,120]
[321239137,1712009449948,-1265.41,0.00055615,120]
[321239138,1712009449957,-500.0,0.00055615,120]
[321239139,1712009449966,-500.0,0.00055615,120]
[321239140,1712009449975,-3000.0,0.00055615,120]
[321239141,1712009449984,-1148.89,0.00055615,120]
[321239142,1712009449993,-500.0,0.00055615,120]
[321239143,1712009450003,-517.77,0.00055615,120]
[321239144,1712009450012,-500.0,0.00055615,120]
[321239145,1712009450022,-500.0,0.00055615,120]
[321239146,1712009450031,-500.0,0.00055615,120]
[321239147,1712009450040,-500.0,0.00055615,120]
[321239148,1712009450049,-546.82,0.00055615,120]